bitfinex/quotes_BTCUSD_20251025
["timestamp","ask_amount","ask_price","bid_price","bid_amount"]
[1761389167112,0.00058552,111740.0,111730.0,0.82712831]
[1761389168142,0.00058552,111740.0,111730.0,0.4947307]
[1761389168359,0.00058552,111740.0,111730.0,0.87528028]
[1761389171903,0.00058552,111740.0,111730.0,0.4947307]
[1761389172118,0.00058552,111740.0,111730.0,0.87528028]
[1761389180250,0.00058552,111740.0,111730.0,0.82712831]
[1761389181992,0.00058552,111740.0,111730.0,0.97682831]
[1761389187379,0.00058552,111740.0,111730.0,1.02500162]
[1761389188585,0.00058552,111740.0,111730.0,0.48741204]
[1761389188929,0.00058552,111740.0,111730.0,0.64441204]
[1761389189322,0.00058552,111740.0,111730.0,1.02496162]
[1761389193852,0.00058552,111740.0,111730.0,0.87526162]
[1761389200509,0.02745057,111740.0,111730.0,0.87526162]
[1761389203200,0.02745057,111740.0,111730.0,0.82708831]
[1761389204700,0.02745057,111740.0,111730.0,0.44653873]
[1761389205116,0.02745057,111740.0,111730.0,0.49472539]
[1761389207624,0.02745057,111740.0,111730.0,0.87527497]
[1761389210989,0.02745057,111740.0,111730.0,0.49472539]
[1761389214068,0.36578664,111740.0,111730.0,0.33772539]
[1761389214270,0.02745057,111740.0,111730.0,0.33772539]
[1761389217649,0.38369826,111740.0,111730.0,0.28953873]
[1761389217866,0.36578664,111740.0,111730.0,0.28953873]
[1761389218727,0.36578664,111740.0,111730.0,0.28853873]
[1761389218936,0.36578664,111740.0,111730.0,0.28553873]
[1761389219387,0.36678664,111740.0,111730.0,0.28553873]
[1761389219856,0.54577357,111740.0,111730.0,0.28553873]
[1761389221727,0.2074375,111740.0,111730.0,0.28553873]
[1761389221934,0.54577357,111740.0,111730.0,0.28553873]
[1761389223364,0.60305357,111740.0,111730.0,0.01671677]
[1761389225861,0.60305357,111740.0,111730.0,0.19571972]
[1761389226073,0.2647175,111740.0,111730.0,0.19571972]
[1761389226550,0.18553057,111740.0,111730.0,0.19571972]
[1761389226758,0.4217975,111740.0,111730.0,0.19571972]
[1761389227175,0.4217975,111740.0,111730.0,0.17900295]
[1761389230527,0.17900295,111730.0,111720.0,0.17901897]
[1761389230739,0.17900295,111730.0,111720.0,0.26883798]
[1761389230740,0.01520716,111730.0,111720.0,0.26883798]
[1761389231149,0.04207988,111730.0,111720.0,0.26883798]
[1761389231553,0.04207988,111730.0,111720.0,0.26983798]
[1761389231958,0.5594189,111730.0,111720.0,0.27083798]
[1761389232219,0.20587567,111730.0,111720.0,0.18101897]
[1761389232819,0.20587567,111730.0,111720.0,0.18001897]
[1761389232995,0.20587567,111730.0,111720.0,0.18101897]
[1761389233172,0.54421174,111730.0,111720.0,0.18001897]
[1761389233381,0.56876435,111730.0,111720.0,0.001]
[1761389233591,0.94494663,111730.0,111720.0,0.002]
[1761389233798,0.94494663,111730.0,111720.0,0.001]
[1761389234477,0.179035,111710.0,111700.0,0.18800357]
[1761389234678,0.69236269,111710.0,111700.0,0.18800357]
[1761389234878,0.67445107,111710.0,111700.0,0.18800357]
[1761389235297,0.73173107,111710.0,111690.0,0.17906617]
[1761389235495,0.01791162,111700.0,111690.0,0.26888518]
[1761389236385,0.04479046,111700.0,111690.0,0.26888518]
[1761389236790,0.04483954,111700.0,111690.0,0.26888518]
[1761389236920,0.04583954,111700.0,111690.0,0.26888518]
[1761389237999,0.02792792,111700.0,111690.0,0.26888518]
[1761389242385,0.18500792,111700.0,111690.0,0.26888518]
[1761389244275,0.02792792,111700.0,111690.0,0.26888518]
[1761389257255,0.02792792,111700.0,111690.0,0.28560806]
[1761389259987,0.00104908,111700.0,111690.0,0.28560806]
[1761389264604,0.00104908,111700.0,111690.0,0.44268806]
[1761389264868,0.00104908,111700.0,111690.0,0.78102413]
[1761389264996,0.00104908,111700.0,111690.0,0.44268806]
[1761389265799,4.908e-05,111700.0,111690.0,0.44268806]
[1761389265995,4.908e-05,111700.0,111690.0,0.44368806]
[1761389266238,4.908e-05,111700.0,111690.0,0.49287472]
[1761389266444,4.908e-05,111700.0,111690.0,0.44468806]
[1761389268357,4.908e-05,111700.0,111690.0,0.78302413]
[1761389268545,4.908e-05,111700.0,111690.0,0.44468806]
[1761389271178,4.908e-05,111700.0,111690.0,0.44471929]
[1761389276316,4.908e-05,111700.0,111690.0,0.44471543]
[1761389277830,0.0179607,111700.0,111690.0,0.28763543]
[1761389278419,0.19701172,111700.0,111690.0,0.28763543]
[1761389278931,0.73502757,111700.0,111690.0,0.28763543]
[1761389279233,0.71711595,111700.0,111690.0,0.27088518]
[1761389280361,0.3361801,111700.0,111690.0,0.27088518]
[1761389280548,0.71711595,111700.0,111690.0,0.27088518]
[1761389281368,0.3361801,111700.0,111690.0,0.27088518]
[1761389285244,0.71711595,111700.0,111690.0,0.27088518]
[1761389285441,0.71711595,111700.0,111690.0,0.09181901]
[1761389285668,0.71711595,111700.0,111690.0,0.27088607]
[1761389287404,0.71711595,111700.0,111690.0,0.09181901]
[1761389288159,0.71711595,111700.0,111690.0,0.27088607]
[1761389288853,0.71711595,111700.0,111690.0,0.09181901]
[1761389290745,0.71711595,111700.0,111690.0,0.27088607]
[1761389293848,0.71711595,111700.0,111690.0,0.09181901]
[1761389297818,0.71711595,111700.0,111690.0,0.002]
[1761389298621,0.71711595,111700.0,111690.0,0.001]
[1761389298961,0.71711595,111700.0,111690.0,0.002]
[1761389299460,0.71711595,111700.0,111690.0,0.001]
[1761389299704,0.17906706,111690.0,111680.0,0.18802342]
[1761389299913,0.57791453,111690.0,111680.0,0.27784243]
[1761389300066,0.56000291,111690.0,111680.0,0.27784243]
[1761389301098,0.56000291,111690.0,111680.0,0.27884243]
[1761389301464,0.15708,111690.0,111680.0,0.27884243]
[1761389301780,0.15708,111690.0,111680.0,0.27984243]
[1761389301986,0.1791001,111700.0,111690.0,0.17906706]
[1761389302298,0.3361801,111700.0,111690.0,0.26888607]
[1761389302510,0.15712908,111700.0,111690.0,0.26888607]
[1761389302707,0.3361801,111700.0,111690.0,0.26888607]
[1761389304066,0.3371801,111700.0,111690.0,0.26888607]
[1761389304560,0.1801001,111700.0,111690.0,0.26888607]
[1761389304793,0.3371801,111700.0,111690.0,0.26888607]
[1761389305142,0.53906493,111700.0,111690.0,0.26888607]
[1761389306356,0.15812908,111700.0,111690.0,0.26888607]
[1761389308062,0.3371801,111700.0,111690.0,0.26888607]
[1761389308262,0.71811595,111700.0,111690.0,0.26888607]
[1761389309217,0.71811595,111700.0,111690.0,0.08981901]
[1761389309849,0.71811595,111700.0,111680.0,0.18802342]
[1761389310021,0.39884747,111690.0,111680.0,0.27784243]
[1761389310244,0.38093585,111690.0,111680.0,0.27784243]
[1761389311239,0.38093585,111690.0,111680.0,0.27884243]
[1761389311850,0.56000291,111690.0,111680.0,0.27884243]
[1761389312057,0.56000291,111690.0,111680.0,0.27984243]
[1761389312533,0.56000291,111690.0,111680.0,0.27884243]
[1761389312919,0.56000291,111690.0,111680.0,0.27984243]
[1761389314138,0.56000291,111690.0,111680.0,0.002]
[1761389314368,1.42783706,111690.0,111680.0,0.002]
[1761389314579,1.33821876,111690.0,111680.0,0.002]
[1761389315379,1.33821876,111690.0,111680.0,0.001]
[1761389315618,0.95728291,111690.0,111680.0,0.002]
[1761389315879,1.33821876,111690.0,111680.0,0.001]
[1761389316070,0.17909341,111680.0,111660.0,0.23616521]
[1761389316246,0.01791162,111670.0,111660.0,0.27779756]
[1761389316475,0.39884747,111670.0,111660.0,0.27779756]
[1761389316647,0.38093585,111670.0,111660.0,0.27779756]
[1761389317270,0.38093585,111670.0,111660.0,0.27879756]
[1761389317474,0.38093585,111670.0,111660.0,0.27779756]
[1761389317909,0.38093585,111670.0,111660.0,0.27879756]
[1761389318923,0.38093585,111670.0,111660.0,0.27979756]
[1761389322276,0.36305991,111680.0,111670.0,0.17909913]
[1761389322482,0.56490235,111680.0,111670.0,0.17909913]
[1761389323422,0.56590235,111680.0,111670.0,0.17909913]
[1761389323839,0.74498544,111680.0,111670.0,0.17909913]
[1761389325553,0.1849665,111680.0,111670.0,0.17909913]
[1761389327399,0.1849665,111680.0,111670.0,0.26891814]
[1761389328822,0.15808,111680.0,111670.0,0.26891814]
[1761389332200,0.53901585,111680.0,111670.0,0.26891814]
[1761389332821,0.15808,111680.0,111670.0,0.26891814]
[1761389333967,0.14808,111680.0,111670.0,0.26891814]
[1761389337120,0.48683712,111680.0,111670.0,0.26891814]
[1761389337523,0.14808,111680.0,111670.0,0.26891814]
[1761389338167,0.342027,111680.0,111670.0,0.26891814]
[1761389338369,0.32716309,111680.0,111670.0,0.26891814]
[1761389339049,0.66592021,111680.0,111670.0,0.26891814]
[1761389339228,0.69280524,111680.0,111670.0,0.26891814]
[1761389339783,0.69280524,111680.0,111670.0,0.17909913]
[1761389341380,0.69280524,111680.0,111660.0,0.18797855]
[1761389341593,0.01791162,111670.0,111660.0,0.27779756]
[1761389341764,0.35666874,111670.0,111660.0,0.27779756]
[1761389341964,0.33875712,111670.0,111660.0,0.27779756]
[1761389342363,0.69280524,111680.0,111660.0,0.27779756]
[1761389342560,0.01791162,111670.0,111660.0,0.27879756]
[1761389343646,0.01791162,111670.0,111660.0,0.27979756]
[1761389344074,0.19701075,111670.0,111660.0,0.27979756]
[1761389344753,0.01791162,111670.0,111660.0,0.27979756]
[1761389346908,0.01791162,111670.0,111660.0,0.30668406]
[1761389349782,0.53576787,111670.0,111660.0,0.30668406]
[1761389349985,0.51785625,111670.0,111660.0,0.27979756]
[1761389350614,0.17909913,111670.0,111660.0,0.27979756]
[1761389350819,0.53576787,111670.0,111660.0,0.27979756]
[1761389351030,0.51785625,111670.0,111660.0,0.27979756]
[1761389355002,0.51785625,111670.0,111660.0,0.27988993]
[1761389360988,0.51784021,111680.0,111660.0,0.27988993]
[1761389361193,0.15708,111670.0,111660.0,0.27988993]
[1761389361767,0.15708,111670.0,111660.0,0.27888993]
[1761389361966,0.15708,111670.0,111660.0,0.27788993]
[1761389362163,0.15708,111670.0,111660.0,0.27988993]
[1761389362619,0.15708,111670.0,111660.0,0.27888993]
[1761389362826,0.17499162,111670.0,111660.0,0.27988993]
[1761389363476,0.17499162,111670.0,111660.0,0.27888993]
[1761389363678,0.17499162,111670.0,111660.0,0.27988993]
[1761389365395,0.35409075,111670.0,111660.0,0.27988993]
[1761389365618,0.33617913,111670.0,111660.0,0.27988993]
[1761389366231,0.67493625,111670.0,111660.0,0.27988993]
[1761389366483,0.67493625,111670.0,111660.0,0.27093418]
[1761389368969,0.33617913,111670.0,111660.0,0.27093418]
[1761389369125,0.67493625,111670.0,111660.0,0.27093418]
[1761389371441,0.33617913,111670.0,111660.0,0.27093418]
[1761389371645,0.67493625,111670.0,111660.0,0.27093418]
[1761389372657,0.49583712,111670.0,111660.0,0.27093418]
[1761389373414,0.15708,111670.0,111660.0,0.27093418]
[1761389374318,0.51784021,111680.0,111670.0,0.17909913]
[1761389374527,0.73224021,111680.0,111670.0,0.17909913]
[1761389377054,0.73324021,111680.0,111670.0,0.17909913]
[1761389377417,0.39448309,111680.0,111670.0,0.17909913]
[1761389377618,0.73324021,111680.0,111670.0,0.17909913]
[1761389381911,0.73324021,111680.0,111660.0,0.26893418]
[1761389383126,0.73324021,111680.0,111660.0,0.26993418]
[1761389383345,0.73224021,111680.0,111660.0,0.26993418]
[1761389383527,0.73224021,111680.0,111660.0,0.27093418]
[1761389383889,0.73224021,111680.0,111670.0,0.17909913]
[1761389385408,0.73224021,111680.0,111660.0,0.26993418]
[1761389385678,0.73224021,111680.0,111660.0,0.26893418]
[1761389385890,0.73224021,111680.0,111670.0,0.17909913]
[1761389386211,0.73324021,111680.0,111670.0,0.17909913]
[1761389386407,0.73224021,111680.0,111670.0,0.17909913]
[1761389387221,0.73324021,111680.0,111670.0,0.17909913]
[1761389389398,0.67592021,111680.0,111670.0,0.17909913]
[1761389393664,0.67592021,111680.0,111660.0,0.26893418]
[1761389393867,0.67592021,111680.0,111670.0,0.17909913]
[1761389394996,0.71833956,111680.0,111670.0,0.17909913]
[1761389395528,0.77565956,111680.0,111670.0,0.17909913]
[1761389395883,0.77465956,111680.0,111670.0,0.17909913]
[1761389396098,0.77465956,111680.0,111670.0,0.17709913]
[1761389396846,0.77565956,111680.0,111670.0,0.17709913]
[1761389398571,0.77565956,111680.0,111660.0,0.26893418]
[1761389398781,0.38117647,111670.0,111660.0,0.26893418]
[1761389399925,0.38117647,111670.0,111660.0,0.26993418]
[1761389400416,0.38117647,111670.0,111660.0,0.27093418]
[1761389401006,0.38117647,111670.0,111660.0,0.26993418]
[1761389401366,0.38117647,111670.0,111660.0,0.27093418]
[1761389407825,0.42037077,111680.0,111670.0,0.17909913]
[1761389408063,0.80154724,111680.0,111670.0,0.17909913]
[1761389408655,0.80154724,111680.0,111660.0,0.27093418]
[1761389408880,0.38117647,111670.0,111660.0,0.26993418]
[1761389409063,0.38117647,111670.0,111660.0,0.26893418]
[1761389410113,0.5602756,111670.0,111660.0,0.26893418]
[1761389410313,0.5602756,111670.0,111660.0,0.26993418]
[1761389410726,0.5602756,111670.0,111660.0,0.26893418]
[1761389410935,0.5602756,111670.0,111660.0,0.26993418]
[1761389411159,0.5602756,111670.0,111660.0,0.27093418]
[1761389411483,0.5602756,111670.0,111660.0,0.26993418]
[1761389411990,0.5602756,111670.0,111660.0,0.27093418]
[1761389413109,0.5602756,111670.0,111660.0,0.09181901]
[1761389413730,0.65009461,111670.0,111660.0,0.09181901]
[1761389414115,0.5602756,111670.0,111660.0,0.09181901]
[1761389414340,0.5602756,111670.0,111660.0,0.27093418]
[1761389418262,0.38117647,111670.0,111660.0,0.27093418]
[1761389420343,0.5602756,111670.0,111660.0,0.27093418]
[1761389421100,0.38117647,111670.0,111660.0,0.27093418]
[1761389426638,0.42037077,111680.0,111660.0,0.27093418]
[1761389426806,0.38117647,111670.0,111660.0,0.27093418]
[1761389427468,0.38117647,111670.0,111660.0,0.26993418]
[1761389428816,0.38117647,111670.0,111660.0,0.27093418]
[1761389429242,0.38117647,111670.0,111660.0,0.26993418]
[1761389429675,0.38117647,111670.0,111660.0,0.27093418]
[1761389432744,0.38117647,111670.0,111660.0,0.26793418]
[1761389439062,0.5602756,111670.0,111660.0,0.26793418]
[1761389442366,0.5602756,111670.0,111660.0,0.26763418]
[1761389445097,0.5602756,111670.0,111660.0,0.002]
[1761389445475,0.58716489,111670.0,111660.0,0.002]
[1761389446474,1.00584648,111670.0,111660.0,0.002]
[1761389447080,1.00584648,111670.0,111660.0,0.001]
[1761389447477,1.00584648,111670.0,111660.0,0.002]
[1761389448063,1.00584648,111670.0,111650.0,0.17912847]
[1761389448263,0.55612809,111660.0,111650.0,0.17912847]
[1761389448414,0.53821647,111660.0,111650.0,0.17912847]
[1761389448963,0.56510731,111660.0,111650.0,0.17912847]
[1761389449396,0.56515636,111660.0,111650.0,0.17912847]
[1761389449963,0.56615636,111660.0,111650.0,0.17912847]
[1761389451479,0.94733283,111660.0,111650.0,0.17912847]
[1761389452921,0.94737283,111660.0,111650.0,0.17912847]
[1761389456317,0.94737283,111660.0,111650.0,0.17712847]
[1761389456950,0.5239808,111660.0,111650.0,0.17712847]
[1761389466499,0.49708996,111660.0,111650.0,0.17712847]
[1761389470287,0.67620513,111660.0,111650.0,0.17913121]
[1761389473148,0.49708996,111660.0,111650.0,0.17913121]
[1761389478792,0.15812905,111660.0,111650.0,0.17913121]
[1761389479122,0.49708996,111660.0,111650.0,0.17913121]
[1761389493271,0.67620513,111660.0,111650.0,0.17913121]
[1761389494305,0.67620513,111660.0,111640.0,0.22022044]
[1761389494514,0.33896091,111650.0,111640.0,0.31003945]
[1761389495379,0.33896091,111650.0,111630.0,0.08409233]
[1761389495380,0.17914725,111640.0,111630.0,0.08409233]
[1761389495606,0.17913121,111650.0,111640.0,0.001]
[1761389495823,0.36306665,111650.0,111640.0,0.001]
[1761389496428,0.36306665,111650.0,111640.0,0.002]
[1761389496811,0.36306665,111650.0,111630.0,0.18290712]
[1761389496982,0.33896091,111640.0,111630.0,0.18290712]
[1761389498112,0.33996091,111640.0,111630.0,0.18290712]
[1761389499189,0.001,111640.0,111630.0,0.18290712]
[1761389501165,0.001,111640.0,111630.0,0.76872704]
[1761389501597,0.001,111640.0,111630.0,0.42976613]
[1761389507241,0.00104,111640.0,111630.0,0.42976613]
[1761389515393,0.00104,111640.0,111630.0,0.46192798]
[1761389518848,0.38235385,111640.0,111630.0,0.46192798]
[1761389519054,0.38235385,111640.0,111630.0,0.42976613]
[1761389519895,0.38235385,111640.0,111630.0,0.27272613]
[1761389520309,0.53939385,111640.0,111630.0,0.27272613]
[1761389520878,0.7185411,111640.0,111630.0,0.27272613]
[1761389522261,0.7185411,111640.0,111630.0,0.18290712]
[1761389522806,0.53939385,111640.0,111630.0,0.18290712]
[1761389535661,0.15808,111640.0,111630.0,0.18290712]
[1761389536015,0.53939385,111640.0,111630.0,0.18290712]
[1761389538744,0.7185411,111640.0,111630.0,0.18290712]
[1761389539159,1.09985495,111640.0,111630.0,0.18290712]
[1761389539588,1.09985495,111640.0,111630.0,0.00374382]
[1761389540317,0.7185411,111640.0,111630.0,0.00374382]
[1761389541139,0.7185411,111640.0,111630.0,0.18290712]
[1761389542088,0.7185411,111640.0,111630.0,0.00374382]
[1761389545304,0.7185411,111640.0,111630.0,0.18290712]
[1761389548356,0.00104,111640.0,111630.0,0.65403998]
[1761389548561,0.00104,111640.0,111630.0,1.27378781]
[1761389548767,0.00104,111640.0,111630.0,0.89247396]
[1761389548967,0.00104,111640.0,111630.0,0.85926664]
[1761389550510,0.00104,111640.0,111630.0,0.86394213]
[1761389550894,0.00104,111640.0,111630.0,1.24525598]
[1761389551322,0.00104,111640.0,111630.0,0.86394213]
[1761389554323,0.00104,111640.0,111630.0,0.89600829]
[1761389557643,0.00104,111640.0,111630.0,0.92289717]
[1761389562447,0.00104,111640.0,111630.0,0.38454332]
[1761389562650,0.00104,111640.0,111630.0,0.87471051]
[1761389571095,0.00104,111640.0,111630.0,0.92289717]
[1761389576302,0.00104,111640.0,111630.0,0.89083101]
[1761389580805,0.00104,111640.0,111630.0,0.50951716]
[1761389586457,0.00104,111640.0,111630.0,0.48262828]
[1761389586848,0.00104,111640.0,111630.0,0.47795279]
[1761389590357,0.00104,111640.0,111630.0,0.42976613]
[1761389596706,0.00104,111640.0,111630.0,0.43444162]
[1761389597695,0.00104,111640.0,111630.0,0.77339322]
[1761389598198,0.00104,111640.0,111630.0,0.82160518]
[1761389598535,4e-05,111640.0,111630.0,0.48265358]
[1761389598734,4e-05,111640.0,111630.0,0.48665358]
[1761389599389,4e-05,111640.0,111630.0,0.48765358]
[1761389602863,4e-05,111640.0,111630.0,0.43944162]
[1761389605199,4e-05,111640.0,111630.0,0.28240162]
[1761389605414,4e-05,111640.0,111630.0,0.43940162]
[1761389607089,4e-05,111640.0,111630.0,0.48762821]
[1761389616045,4e-05,111640.0,111630.0,0.43940162]
[1761389616248,4e-05,111640.0,111630.0,0.77835322]
[1761389621888,4e-05,111640.0,111630.0,0.8052436]
[1761389622417,4e-05,111640.0,111630.0,0.466292]
[1761389622619,4e-05,111640.0,111630.0,0.51450655]
[1761389634765,4e-05,111640.0,111630.0,0.48761617]
[1761389634766,0.3389916,111640.0,111630.0,0.48761617]
[1761389634902,4e-05,111640.0,111630.0,0.51976124]
[1761389638918,4e-05,111640.0,111630.0,0.48761617]
[1761389641808,0.35690322,111640.0,111630.0,0.18790712]
[1761389642074,0.3389916,111640.0,111630.0,0.18790712]
[1761389642423,0.54503453,111640.0,111630.0,0.18790712]
[1761389642642,0.54503453,111640.0,111630.0,0.18390712]
[1761389642837,0.58753215,111640.0,111630.0,0.18290712]
[1761389643261,0.58753215,111640.0,111630.0,0.18390712]
[1761389643666,0.58753215,111640.0,111630.0,0.18290712]
[1761389643906,0.58753215,111640.0,111630.0,0.18390712]
[1761389644054,0.58753215,111640.0,111630.0,0.18790712]
[1761389644280,0.58753215,111640.0,111630.0,0.18390712]
[1761389644508,0.58753215,111640.0,111630.0,0.18590712]
[1761389645580,0.74453215,111640.0,111630.0,0.18590712]
[1761389649178,0.74453215,111640.0,111630.0,0.00674382]
[1761389649584,0.74453215,111640.0,111630.0,0.18590712]
[1761389660610,0.87053344,111640.0,111630.0,0.00674382]
[1761389661242,0.87053344,111640.0,111630.0,0.00574382]
[1761389661594,0.87053344,111640.0,111630.0,0.00674382]
[1761389661798,0.87053344,111640.0,111630.0,0.00474382]
[1761389661992,0.87053344,111640.0,111630.0,0.00374382]
[1761389662199,0.87053344,111640.0,111630.0,0.00574382]
[1761389663459,0.87053344,111640.0,111630.0,0.00374382]
[1761389663990,0.78071443,111640.0,111630.0,0.00374382]
[1761389671885,0.02693568,111640.0,111630.0,0.18290712]
[1761389672222,0.76248377,111640.0,111630.0,0.18290712]
[1761389672545,0.5654249,111640.0,111630.0,0.18290712]
[1761389684231,0.5654249,111640.0,111630.0,0.00374382]
[1761389684232,0.74457215,111640.0,111630.0,0.00374382]
[1761389684643,0.37968171,111640.0,111630.0,0.00374382]
[1761389684851,0.36312293,111640.0,111630.0,0.18290712]
[1761389685060,0.74457215,111640.0,111630.0,0.18290712]
[1761389685633,0.74457215,111640.0,111630.0,0.18390712]
[1761389686904,0.74457215,111640.0,111630.0,0.18290712]
[1761389687045,0.74457215,111640.0,111630.0,0.1801633]
[1761389688471,0.5654249,111640.0,111630.0,0.1801633]
[1761389692459,0.5654249,111640.0,111630.0,0.1839071]
[1761389694865,0.18397568,111640.0,111630.0,0.1839071]
[1761389695049,0.5654249,111640.0,111630.0,0.1839071]
[1761389698664,0.18397568,111640.0,111630.0,0.1839071]
[1761389698972,0.5654249,111640.0,111630.0,0.1839071]
[1761389699137,0.18397568,111640.0,111630.0,0.1839071]
[1761389699328,0.5654249,111640.0,111630.0,0.1839071]
[1761389702673,0.18397568,111640.0,111630.0,0.1839071]
[1761389704197,0.02693568,111640.0,111630.0,0.1839071]
[1761389704405,0.02693568,111640.0,111630.0,0.27372611]
[1761389704406,4e-05,111640.0,111630.0,0.27372611]
[1761389704814,4e-05,111640.0,111630.0,0.61274771]
[1761389707057,4e-05,111640.0,111630.0,0.27372611]
[1761389708648,4e-05,111640.0,111630.0,0.61274771]
[1761389708986,4e-05,111640.0,111630.0,0.27372611]
[1761389713257,4e-05,111640.0,111630.0,0.27272611]
[1761389714630,4e-05,111640.0,111630.0,0.27372611]
[1761389715845,4e-05,111640.0,111630.0,0.27572611]
[1761389734341,4e-05,111640.0,111630.0,0.32394066]
[1761389734553,4e-05,111640.0,111630.0,0.66296226]
[1761389738683,4e-05,111640.0,111630.0,0.32394066]
[1761389742178,4e-05,111640.0,111630.0,0.35083203]
[1761389747649,4e-05,111640.0,111630.0,0.68985363]
[1761389750672,4e-05,111640.0,111630.0,0.35083203]
[1761389764840,4e-05,111640.0,111630.0,0.73213932]
[1761389766455,4e-05,111640.0,111630.0,0.70524795]
[1761389766687,0.02693137,111640.0,111630.0,0.70524795]
[1761389767704,0.02693137,111640.0,111630.0,0.32394066]
[1761389767902,0.40823866,111640.0,111630.0,0.27572611]
[1761389768124,0.02693137,111640.0,111630.0,0.43272611]
[1761389789722,0.42615028,111640.0,111630.0,0.43272611]
[1761389789924,0.40823866,111640.0,111630.0,0.43272611]
[1761389791553,0.58738591,111640.0,111630.0,0.1859071]
[1761389792322,0.58738591,111640.0,111630.0,0.0067438]
[1761389792761,0.58738591,111640.0,111630.0,0.0037438]
[1761389793187,0.58738591,111640.0,111630.0,0.0047438]
[1761389793842,0.58738591,111640.0,111630.0,0.1839071]
[1761389800548,0.58738591,111640.0,111630.0,0.0047438]
[1761389807465,0.62356819,111640.0,111630.0,0.0047438]
[1761389809123,0.62356819,111640.0,111630.0,0.1839071]
[1761389809420,0.62356819,111640.0,111630.0,0.0047438]
[1761389813703,0.62356819,111640.0,111630.0,0.1839071]
[1761389815805,0.02693137,111640.0,111630.0,0.1839071]
[1761389816019,0.18393137,111640.0,111630.0,0.1839071]
[1761389816440,0.56523866,111640.0,111630.0,0.1839071]
[1761389818087,0.18393137,111640.0,111630.0,0.1839071]
[1761389819438,0.36307862,111640.0,111630.0,0.1839071]
[1761389820488,0.18393137,111640.0,111630.0,0.1839071]
[1761389822646,0.02693137,111640.0,111630.0,0.6550334]
[1761389822874,0.18393137,111640.0,111630.0,0.6550334]
[1761389824734,0.02693137,111640.0,111630.0,0.43072611]
[1761389826481,4e-05,111640.0,111630.0,0.43072611]
[1761389830508,4e-05,111640.0,111630.0,0.27372611]
[1761389877044,4e-05,111640.0,111630.0,0.30588077]
[1761389881735,4e-05,111640.0,111630.0,0.64484437]
[1761389882489,4e-05,111640.0,111630.0,0.30588077]
[1761389882693,4e-05,111640.0,111630.0,0.64484437]
[1761389883360,4e-05,111640.0,111630.0,0.69305892]
[1761389883753,4e-05,111640.0,111630.0,0.71994913]
[1761389884408,4e-05,111640.0,111630.0,0.71894913]
[1761389884522,4e-05,111640.0,111630.0,0.71994913]
[1761389884743,4e-05,111640.0,111630.0,1.14345859]
[1761389885334,4e-05,111640.0,111630.0,1.14545859]
[1761389885663,4e-05,111640.0,111630.0,1.20277859]
[1761389886514,4e-05,111640.0,111630.0,0.79465185]
[1761389889192,4e-05,111640.0,111630.0,0.7464373]
[1761389891088,4e-05,111640.0,111630.0,1.12767383]
[1761389892474,4e-05,111640.0,111630.0,0.7464373]
[1761389893462,4e-05,111640.0,111630.0,0.36520077]
[1761389893673,4e-05,111640.0,111630.0,0.7464373]
[1761389898294,4e-05,111640.0,111630.0,0.46484077]
[1761389898504,4e-05,111640.0,111630.0,0.9033973]
[1761389902255,4e-05,111640.0,111630.0,0.95161185]
[1761389906573,4e-05,111640.0,111630.0,0.57037532]
[1761389906712,4e-05,111640.0,111630.0,0.95161185]
[1761389907111,4e-05,111640.0,111630.0,0.57037532]
[1761389907338,4e-05,111640.0,111630.0,0.95161185]
[1761389908434,4e-05,111640.0,111630.0,0.8460773]
[1761389908636,4e-05,111640.0,111630.0,0.46484077]
[1761389918500,4e-05,111640.0,111630.0,0.8460773]
[1761389926781,4e-05,111640.0,111630.0,0.46484077]
[1761389926979,4e-05,111640.0,111630.0,0.8460773]
[1761389928833,4e-05,111640.0,111630.0,0.46484077]
[1761389928969,4e-05,111640.0,111630.0,0.8460773]
[1761389932680,4e-05,111640.0,111630.0,0.46484077]
[1761389932905,4e-05,111640.0,111630.0,0.8460773]
[1761389934236,4e-05,111640.0,111630.0,0.89429185]
[1761389935635,4e-05,111640.0,111630.0,0.8460773]
[1761389936439,4e-05,111640.0,111630.0,0.46484077]
[1761389939112,4e-05,111640.0,111630.0,0.43268611]
[1761389941960,0.39918815,111640.0,111630.0,0.27572611]
[1761389942330,0.38127653,111640.0,111630.0,0.27572611]
[1761389942469,0.40816995,111640.0,111630.0,0.27572611]
[1761389943301,0.56512995,111640.0,111630.0,0.27572611]
[1761389943725,0.7442772,111640.0,111630.0,0.27572611]
[1761389944283,0.7442772,111640.0,111630.0,0.1859071]
[1761389944875,0.70212114,111640.0,111630.0,0.1859071]
[1761389945587,0.36304067,111640.0,111630.0,0.1859071]
[1761389946229,0.70212114,111640.0,111630.0,0.0067438]
[1761389946588,0.70212114,111640.0,111630.0,0.0037438]
[1761389947106,0.36304067,111640.0,111630.0,0.0057438]
[1761389947491,0.36304067,111640.0,111630.0,0.0067438]
[1761389947686,0.36304067,111640.0,111630.0,0.0047438]
[1761389949871,0.36304067,111640.0,111630.0,0.0057438]
[1761389951226,0.36304067,111640.0,111630.0,0.1849071]
[1761389951962,0.36304067,111640.0,111630.0,0.0057438]
[1761389952507,0.36304067,111640.0,111630.0,0.1849071]
[1761389953062,0.36304067,111640.0,111630.0,0.0057438]
[1761389955907,0.39922295,111640.0,111630.0,0.0057438]
[1761389956173,0.73830342,111640.0,111630.0,0.0057438]
[1761389956389,0.79562342,111640.0,111630.0,0.0057438]
[1761389956631,0.88544243,111640.0,111630.0,0.0057438]
[1761389964212,1.22544243,111640.0,111630.0,0.0057438]
[1761389965782,1.22544243,111640.0,111630.0,0.0047438]
[1761389966195,1.22644243,111640.0,111630.0,0.0037438]
[1761389968869,1.24575846,111640.0,111630.0,0.0037438]
[1761389969043,1.22644243,111640.0,111630.0,0.0037438]
[1761389969857,1.22544243,111640.0,111630.0,0.0037438]
[1761389970000,1.65434191,111640.0,111630.0,0.0037438]
[1761389970197,1.65734191,111640.0,111630.0,0.0037438]
[1761389972338,1.31826144,111640.0,111630.0,0.0037438]
[1761389981163,1.68152511,111640.0,111630.0,0.0037438]
[1761389982975,1.65734191,111640.0,111630.0,0.0037438]
[1761389983275,1.68147146,111640.0,111630.0,0.0037438]
[1761389983990,1.69147145,111640.0,111630.0,0.0037438]
[1761389984406,1.68147146,111640.0,111630.0,0.0037438]
[1761389984654,1.69147145,111640.0,111630.0,0.0037438]
[1761389985053,1.68847145,111640.0,111630.0,0.0037438]
[1761389985266,1.69347145,111640.0,111630.0,0.0037438]
[1761389986267,1.35439098,111640.0,111630.0,0.0037438]
[1761389987957,1.34439099,111640.0,111630.0,0.0037438]
[1761389988310,1.35439098,111640.0,111630.0,0.0037438]
[1761389988536,1.69347145,111640.0,111630.0,0.0037438]
[1761389991380,1.72552355,111640.0,111630.0,0.0037438]
[1761389993740,1.71552356,111640.0,111630.0,0.0037438]
[1761389993945,1.72552355,111640.0,111630.0,0.0037438]
[1761389997930,1.35443098,111640.0,111630.0,0.0037438]
[1761389998760,1.72556355,111640.0,111630.0,0.0037438]